bitfinex/quotes_BTCUSD_20241028
["timestamp","ask_amount","ask_price","bid_price","bid_amount"]
[1730146487423,0.001628,69581.0,69579.0,0.005]
[1730146487658,0.001628,69581.0,69580.0,0.143719]
[1730146487902,0.001628,69581.0,69580.0,0.31981211]
[1730146488148,0.001628,69581.0,69580.0,0.46513799]
[1730146488836,0.001628,69581.0,69580.0,0.47439024]
[1730146489271,0.002628,69581.0,69580.0,0.48339024]
[1730146489718,0.002628,69581.0,69580.0,0.48839024]
[1730146489982,0.002628,69581.0,69580.0,0.65025767]
[1730146490236,0.002628,69581.0,69580.0,0.66425767]
[1730146490470,0.003628,69581.0,69580.0,0.66425767]
[1730146490685,0.003628,69581.0,69580.0,0.66225767]
[1730146491141,0.002628,69581.0,69580.0,0.65325767]
[1730146491600,0.002628,69581.0,69580.0,0.66725767]
[1730146492467,0.002628,69581.0,69580.0,0.66925767]
[1730146492745,0.002628,69581.0,69580.0,0.66725767]
[1730146495312,0.002628,69581.0,69580.0,0.50039024]
[1730146495536,0.002628,69581.0,69580.0,0.52105767]
[1730146495760,0.002628,69581.0,69580.0,0.52105766]
[1730146496216,0.002628,69581.0,69580.0,0.81609391]
[1730146496451,0.002628,69581.0,69580.0,0.87145766]
[1730146497614,0.002628,69581.0,69580.0,0.86945766]
[1730146497839,0.002628,69581.0,69580.0,0.71075766]
[1730146498529,0.002628,69581.0,69580.0,0.71275766]
[1730146500084,0.002628,69581.0,69580.0,0.63105766]
[1730146501478,0.002628,69581.0,69580.0,0.63305766]
[1730146501704,0.002628,69581.0,69580.0,0.63105766]
[1730146503788,0.002628,69581.0,69580.0,0.20121898]
[1730146504049,0.151428,69581.0,69580.0,0.19660271]
[1730146504267,0.002628,69581.0,69580.0,0.34493798]
[1730146504486,0.002628,69581.0,69580.0,0.51180541]
[1730146504723,0.002628,69581.0,69580.0,0.49780541]
[1730146504959,0.002628,69581.0,69580.0,0.5827054]
[1730146505191,0.002628,69581.0,69580.0,0.5947054]
[1730146505432,0.001628,69581.0,69580.0,0.5787054]
[1730146505703,0.001628,69581.0,69580.0,0.5807054]
[1730146505934,0.001628,69581.0,69580.0,0.5927054]
[1730146506378,0.002628,69581.0,69580.0,0.6067054]
[1730146506597,0.002628,69581.0,69580.0,0.61394187]
[1730146506820,0.002628,69581.0,69580.0,0.61594187]
[1730146507048,0.002628,69581.0,69580.0,0.71594187]
[1730146507289,0.002628,69581.0,69580.0,0.70194187]
[1730146507530,0.003628,69581.0,69580.0,0.71594187]
[1730146507749,0.003628,69581.0,69580.0,0.86544187]
[1730146515648,0.003628,69581.0,69580.0,0.86044187]
[1730146515876,0.003628,69581.0,69580.0,0.86544186]
[1730146516100,0.003628,69581.0,69580.0,0.46417443]
[1730146516564,0.003628,69581.0,69580.0,0.35417443]
[1730146516815,0.003628,69581.0,69580.0,0.36417443]
[1730146517055,0.003628,69581.0,69580.0,0.35493796]
[1730146517280,0.002628,69581.0,69580.0,0.34093796]
[1730146517742,0.001628,69581.0,69580.0,0.32693796]
[1730146517953,0.002628,69581.0,69580.0,0.44093796]
[1730146518404,0.152228,69581.0,69580.0,0.03888369]
[1730146518620,0.151228,69581.0,69580.0,0.02488369]
[1730146519061,0.152228,69581.0,69580.0,0.03888369]
[1730146519300,0.231628,69581.0,69580.0,0.03388369]
[1730146520221,0.230628,69581.0,69580.0,0.02488369]
[1730146520418,0.230628,69581.0,69580.0,0.0218151]
[1730146520707,0.230628,69581.0,69580.0,0.02564126]
[1730146521386,0.230628,69581.0,69580.0,0.02464126]
[1730146521850,0.230628,69581.0,69580.0,0.02564126]
[1730146523197,0.230628,69581.0,69580.0,0.16936026]
[1730146523871,0.230628,69581.0,69580.0,0.02564126]
[1730146525769,0.230628,69581.0,69580.0,0.16936026]
[1730146526009,0.230628,69581.0,69580.0,0.02564126]
[1730146536327,0.230628,69581.0,69580.0,0.16936026]
[1730146536544,0.230628,69581.0,69580.0,0.02564126]
[1730146538554,0.230628,69581.0,69580.0,0.16936026]
[1730146538825,0.230628,69581.0,69580.0,0.02564126]
[1730146542593,0.230628,69581.0,69580.0,0.16936026]
[1730146545547,0.001628,69581.0,69580.0,0.16936026]
[1730146550850,0.001628,69581.0,69580.0,0.75068339]
[1730146550851,1e-06,69581.0,69580.0,0.75068339]
[1730146551088,0.001628,69588.0,69587.0,0.160705]
[1730146551320,0.001628,69593.0,69590.0,0.148698]
[1730146551589,0.001628,69593.0,69590.0,0.31458493]
[1730146551841,0.001628,69593.0,69590.0,0.32727068]
[1730146552070,0.001628,69593.0,69590.0,0.32727067]
[1730146552293,0.001628,69593.0,69591.0,0.60632314]
[1730146552507,0.001628,69593.0,69591.0,0.88647828]
[1730146552729,0.001628,69593.0,69591.0,0.88916357]
[1730146554037,0.002628,69592.0,69591.0,0.90516357]
[1730146554484,0.002628,69592.0,69591.0,0.90316357]
[1730146554703,0.002628,69592.0,69591.0,0.73661588]
[1730146554918,0.003628,69592.0,69591.0,0.75061588]
[1730146556040,0.003628,69592.0,69591.0,0.91716356]
[1730146556256,0.003628,69592.0,69591.0,0.91916356]
[1730146557205,0.00165,69611.0,69594.0,0.26069]
[1730146557436,0.00165,69611.0,69594.0,0.42991591]
[1730146557666,0.00165,69611.0,69594.0,0.42972675]
[1730146558347,0.00165,69611.0,69610.0,0.148657]
[1730146558562,0.00165,69611.0,69610.0,0.17434452]
[1730146558785,0.00165,69611.0,69610.0,0.17702099]
[1730146559678,0.00265,69611.0,69610.0,0.18402099]
[1730146560342,0.00265,69611.0,69610.0,0.17702099]
[1730146560343,0.00165,69611.0,69610.0,0.17702099]
[1730146560631,0.001628,69620.0,69619.0,0.005]
[1730146560862,0.21533625,69630.0,69629.0,0.005]
[1730146561091,0.21538717,69637.0,69629.0,0.005]
[1730146561092,0.21538717,69637.0,69629.0,0.0227996]
[1730146561334,0.21538717,69637.0,69630.0,0.287232]
[1730146561550,0.34288717,69637.0,69633.0,0.143609]
[1730146561777,5.092e-05,69637.0,69636.0,0.143603]
[1730146561994,0.0769,69647.0,69636.0,0.1664026]
[1730146561995,0.21533625,69642.0,69636.0,0.1664026]
[1730146562215,0.21533625,69642.0,69637.0,0.143601]
[1730146562659,0.000825,69642.0,69638.0,0.00258402]
[1730146563178,0.000825,69642.0,69639.0,0.00255546]
[1730146563407,0.000825,69642.0,69640.0,0.143595]
[1730146563626,0.000825,69642.0,69637.0,0.1436]
[1730146563846,0.000825,69642.0,69641.0,0.00255453]
[1730146564072,0.000825,69642.0,69638.0,0.02247957]
[1730146564288,0.000825,69642.0,69638.0,0.16607857]
[1730146564531,0.000825,69642.0,69639.0,0.00254442]
[1730146564944,0.000825,69642.0,69640.0,0.003]
[1730146565165,0.000825,69642.0,69640.0,0.00254342]
[1730146565603,0.000825,69642.0,69636.0,0.143603]
[1730146565826,0.000825,69642.0,69641.0,0.00254296]
[1730146566058,0.000825,69642.0,69641.0,0.143593]
[1730146566274,0.000825,69642.0,69641.0,0.16814817]
[1730146566714,0.000825,69642.0,69641.0,0.31648344]
[1730146566971,0.001825,69642.0,69641.0,0.31648344]
[1730146567904,0.001825,69642.0,69641.0,0.48703112]
[1730146568125,0.000825,69642.0,69641.0,0.48303112]
[1730146568356,0.000825,69642.0,69641.0,0.49103112]
[1730146568567,0.000825,69642.0,69641.0,0.50054491]
[1730146568777,0.000825,69642.0,69641.0,0.58024491]
[1730146568990,0.000825,69642.0,69641.0,0.59024491]
[1730146569423,0.000825,69642.0,69641.0,0.59424491]
[1730146569659,0.000825,69642.0,69641.0,0.34799723]
[1730146569885,0.000825,69642.0,69641.0,0.34399723]
[1730146570104,0.000825,69642.0,69641.0,0.32099723]
[1730146570332,0.000825,69642.0,69641.0,0.33999723]
[1730146570552,0.000825,69642.0,69641.0,0.35399723]
[1730146570780,0.000825,69642.0,69641.0,0.33599723]
[1730146571030,0.000825,69642.0,69641.0,0.34399723]
[1730146571262,0.000825,69642.0,69641.0,0.34199723]
[1730146571475,0.000825,69642.0,69641.0,0.35199723]
[1730146572371,0.000825,69642.0,69641.0,0.34699723]
[1730146572597,0.000825,69642.0,69641.0,0.35199723]
[1730146573278,0.000825,69642.0,69641.0,0.34199723]
[1730146573493,0.000825,69642.0,69641.0,0.35199723]
[1730146573722,0.000825,69642.0,69641.0,0.32748344]
[1730146573959,0.000825,69642.0,69641.0,0.04055517]
[1730146574434,0.50256368,69642.0,69641.0,0.0220456]
[1730146574664,0.78974768,69642.0,69641.0,0.0244653]
[1730146574916,0.111925,69642.0,69641.0,0.0220456]
[1730146575141,0.111925,69642.0,69639.0,0.02234771]
[1730146575142,0.000825,69642.0,69639.0,0.02234771]
[1730146575357,0.000825,69642.0,69636.0,0.287205]
[1730146575358,0.000825,69642.0,69641.0,0.14667262]
[1730146575573,0.000825,69642.0,69641.0,0.16594071]
[1730146575785,0.000825,69642.0,69641.0,0.17302033]
[1730146576290,0.000825,69642.0,69641.0,0.16902033]
[1730146576512,0.001825,69642.0,69641.0,0.17002033]
[1730146576721,0.001825,69642.0,69641.0,0.02642733]
[1730146576943,0.009825,69642.0,69641.0,0.00507962]
[1730146577164,0.008825,69642.0,69641.0,0.00407962]
[1730146577437,0.002825,69642.0,69641.0,0.14667262]
[1730146577657,0.009825,69642.0,69641.0,0.00407962]
[1730146578096,0.009825,69642.0,69641.0,0.14767262]
[1730146578990,0.009825,69642.0,69641.0,0.00407962]
[1730146579417,0.009825,69642.0,69641.0,0.14767262]
[1730146579636,0.009825,69642.0,69641.0,0.00407962]
[1730146579887,0.009825,69642.0,69641.0,0.30887965]
[1730146580127,0.009825,69642.0,69641.0,0.30600789]
[1730146580845,0.009825,69642.0,69641.0,0.30500789]
[1730146580846,0.002825,69642.0,69641.0,0.30500789]
[1730146581063,0.002825,69642.0,69641.0,0.30787914]
[1730146581308,0.002825,69642.0,69641.0,0.31387914]
[1730146581309,0.003825,69642.0,69641.0,0.31387914]
[1730146581540,0.003825,69642.0,69641.0,0.31100789]
[1730146581768,0.001825,69642.0,69641.0,0.31100789]
[1730146581998,0.007825,69642.0,69641.0,0.31200789]
[1730146582671,0.001628,69651.0,69650.0,0.258575]
[1730146582873,0.21696425,69662.0,69661.0,0.143552]
[1730146583070,0.21696425,69662.0,69661.0,0.28688727]
[1730146583285,0.001628,69662.0,69661.0,0.28994213]
[1730146583709,0.001628,69662.0,69661.0,0.00305486]
[1730146583845,0.001628,69662.0,69643.0,0.1]
[1730146583846,0.01490527,69662.0,69656.0,0.35889825]
[1730146584085,0.01327711,69661.0,69657.0,0.003038]
[1730146584302,0.001628,69662.0,69657.0,0.003038]
[1730146584712,0.001628,69662.0,69658.0,0.143558]
[1730146584921,0.001628,69662.0,69659.0,0.143554]
[1730146585119,0.001628,69662.0,69661.0,0.004]
[1730146585368,0.01490727,69662.0,69661.0,0.004]
[1730146585567,0.01490727,69662.0,69661.0,0.00303547]
[1730146585989,0.01490727,69662.0,69661.0,0.143552]
[1730146586195,0.02090727,69662.0,69661.0,0.14658747]
[1730146586653,0.01490727,69662.0,69661.0,0.14658747]
[1730146586870,0.01490727,69662.0,69661.0,0.28992274]
[1730146587079,0.01890727,69662.0,69661.0,0.28992274]
[1730146587946,0.01490727,69662.0,69661.0,0.28992274]
[1730146588165,0.01490727,69662.0,69661.0,0.29279349]
[1730146588381,0.01790727,69662.0,69661.0,0.29279349]
[1730146588798,0.01490727,69662.0,69661.0,0.29279349]
[1730146588966,0.01490727,69662.0,69661.0,0.28992274]
[1730146589407,0.0362064,69662.0,69661.0,0.28992274]
[1730146589772,0.0372064,69662.0,69661.0,0.28992274]
[1730146589944,0.0362064,69662.0,69661.0,0.28992274]
[1730146590597,0.0362064,69662.0,69661.0,0.29192274]
[1730146590804,0.0362064,69662.0,69661.0,0.28992274]
[1730146591217,0.0362064,69662.0,69661.0,0.29292274]
[1730146591870,0.0362064,69662.0,69661.0,0.00603547]
[1730146592078,0.0362064,69662.0,69661.0,0.00289192]
[1730146592278,0.0362064,69662.0,69661.0,0.004]
[1730146592528,0.03624445,69662.0,69661.0,0.00689111]
[1730146593148,0.03624445,69662.0,69661.0,0.00289111]
[1730146593346,0.17979445,69662.0,69661.0,0.001]
[1730146593688,0.17979445,69662.0,69661.0,0.002]
[1730146593893,0.18479445,69662.0,69661.0,0.002]
[1730146594086,0.04124445,69662.0,69661.0,0.00489111]
[1730146594294,0.18479445,69662.0,69661.0,0.002]
[1730146594509,0.18479445,69662.0,69661.0,0.00489111]
[1730146594715,0.18479445,69662.0,69661.0,0.002]
[1730146594922,0.04124445,69662.0,69661.0,0.00289111]
[1730146595127,0.04124445,69662.0,69658.0,0.143558]
[1730146595376,0.03461645,69661.0,69657.0,0.21533625]
[1730146595587,0.03461645,69660.0,69657.0,0.21533625]
[1730146595792,0.03461645,69659.0,69657.0,0.21533625]
[1730146595998,0.03461645,69658.0,69656.0,0.143562]
[1730146596225,0.005628,69662.0,69656.0,0.143562]
[1730146596475,0.005628,69662.0,69652.0,0.2966918]
[1730146596476,0.292731,69662.0,69652.0,0.2966918]
[1730146596710,0.0771,69660.0,69652.0,0.0095508]
[1730146596925,0.0771,69660.0,69658.0,0.001648]
[1730146598029,0.001,69659.0,69658.0,0.001648]
[1730146598451,0.0771,69660.0,69658.0,0.001648]
[1730146598874,0.0781,69660.0,69658.0,0.145206]
[1730146599130,0.0781,69660.0,69658.0,0.001648]
[1730146599337,0.0811,69660.0,69658.0,0.001648]
[1730146599954,0.0811,69660.0,69658.0,0.145205]
[1730146600395,0.0811,69660.0,69658.0,0.001648]
[1730146601351,0.0811,69660.0,69658.0,0.145206]
[1730146601554,0.0811,69660.0,69659.0,0.143556]
[1730146602032,0.0811,69660.0,69658.0,0.001648]
[1730146602243,0.0811,69660.0,69658.0,0.145205]
[1730146602461,0.0771,69660.0,69658.0,0.145205]
[1730146602890,0.0801,69660.0,69658.0,0.145205]
[1730146603113,0.0771,69660.0,69658.0,0.145205]
[1730146603548,0.0801,69660.0,69658.0,0.145205]
[1730146604436,0.0811,69660.0,69658.0,0.145205]
[1730146604650,0.0811,69660.0,69658.0,0.001648]
[1730146604870,0.0801,69660.0,69658.0,0.001648]
[1730146605085,0.0781,69660.0,69658.0,0.001648]
[1730146605757,0.0821,69660.0,69659.0,0.143556]
[1730146606028,0.0781,69660.0,69659.0,0.143556]
[1730146606231,0.0811,69660.0,69659.0,0.143556]
[1730146606645,0.0771,69660.0,69659.0,0.143556]
[1730146606877,0.0811,69660.0,69659.0,0.143556]
[1730146607543,0.0831,69660.0,69659.0,0.143556]
[1730146607971,0.0811,69660.0,69659.0,0.143556]
[1730146608626,0.0831,69660.0,69659.0,0.143556]
[1730146609293,0.0831,69660.0,69659.0,0.14645712]
[1730146609749,0.0831,69660.0,69659.0,0.14810512]
[1730146610692,0.006,69660.0,69659.0,0.14810512]
[1730146610913,0.006,69660.0,69659.0,0.46085921]
[1730146611130,0.006,69660.0,69659.0,0.45798807]
[1730146613843,0.006,69660.0,69659.0,0.46725117]
[1730146614082,0.006,69660.0,69659.0,0.30570349]
[1730146614862,0.000824,69662.0,69661.0,0.005]
[1730146615112,0.000824,69662.0,69661.0,0.46130554]
[1730146615338,0.000824,69662.0,69661.0,0.46332259]
[1730146615548,0.000824,69662.0,69661.0,0.46132259]
[1730146616220,0.000824,69662.0,69661.0,0.29577491]
[1730146616867,0.000824,69662.0,69661.0,0.29677491]
[1730146618252,0.000824,69662.0,69661.0,0.46619318]
[1730146618501,0.000824,69662.0,69661.0,0.45832259]
[1730146623259,0.000824,69662.0,69661.0,0.46332259]
[1730146624161,0.000824,69662.0,69661.0,0.46232259]
[1730146624389,0.000824,69662.0,69661.0,0.46732259]
[1730146624649,0.000824,69662.0,69661.0,0.64752259]
[1730146624871,0.000824,69662.0,69661.0,0.65252259]
[1730146625092,0.000824,69662.0,69661.0,0.75272528]
[1730146625338,0.000824,69662.0,69661.0,0.76472528]
[1730146625567,0.000824,69662.0,69661.0,0.76472527]
[1730146626224,0.000824,69662.0,69661.0,0.75972527]
[1730146626440,0.000824,69662.0,69661.0,0.76272527]
[1730146626654,0.000824,69662.0,69661.0,0.49727759]
[1730146626862,0.000824,69662.0,69661.0,0.49227758]
[1730146627286,0.000824,69662.0,69661.0,0.41497758]
[1730146627525,0.000824,69662.0,69661.0,0.41897758]
[1730146627959,0.000824,69662.0,69661.0,0.41497758]
[1730146628181,0.001824,69662.0,69661.0,0.42397758]
[1730146628447,0.001824,69662.0,69661.0,0.30897758]
[1730146628709,0.180424,69662.0,69661.0,0.02209031]
[1730146629133,0.180424,69662.0,69661.0,0.01920267]
[1730146629349,0.180424,69662.0,69661.0,0.01192895]
[1730146630240,0.179424,69662.0,69661.0,0.00292895]
[1730146630675,0.184424,69662.0,69661.0,0.00292895]
[1730146631333,0.327974,69662.0,69661.0,0.00292895]
[1730146631543,0.91862202,69662.0,69661.0,0.00292895]
[1730146631762,0.04,69660.0,69659.0,0.001648]
[1730146631984,0.87095143,69660.0,69659.0,0.001648]
[1730146632203,1.02843146,69660.0,69659.0,0.001648]
[1730146632430,1.02842734,69660.0,69659.0,0.001648]
[1730146632652,0.92181906,69660.0,69659.0,0.001648]
[1730146633095,1.02838533,69660.0,69659.0,0.001648]
[1730146633572,1.03904624,69660.0,69659.0,0.001648]
[1730146633780,1.03904624,69660.0,69659.0,0.002648]
[1730146633781,0.93347997,69660.0,69659.0,0.002648]
[1730146634201,1.01870106,69660.0,69659.0,0.002648]
[1730146634410,0.84715338,69660.0,69659.0,0.002648]
[1730146634626,0.33311491,69660.0,69659.0,0.002648]
[1730146634844,0.34611491,69660.0,69659.0,0.002648]
[1730146635274,0.35011491,69660.0,69659.0,0.003648]
[1730146635700,0.65999786,69660.0,69659.0,0.003648]
[1730146635912,0.69299786,69660.0,69659.0,0.003648]
[1730146636574,0.85020909,69660.0,69659.0,0.003648]
[1730146636794,0.83629,69660.0,69659.0,0.003648]
[1730146637007,0.281556,69659.0,69658.0,0.00020767]
[1730146637229,1.02282646,69659.0,69658.0,0.00020767]
[1730146637482,0.77112566,69659.0,69658.0,0.00020767]
[1730146637699,0.70210173,69659.0,69658.0,0.00020767]
[1730146637910,0.7659469,69659.0,69658.0,0.00020767]
[1730146638120,0.76792741,69659.0,69658.0,0.00020767]
[1730146638336,0.87719107,69659.0,69658.0,0.00220767]
[1730146638784,0.96229229,69659.0,69658.0,0.00220767]
[1730146639003,0.87719107,69659.0,69658.0,0.00220767]
[1730146639645,1.12883569,69659.0,69658.0,0.00220767]
[1730146640148,0.88048801,69659.0,69658.0,0.00220767]
[1730146640362,0.1196,69659.0,69658.0,0.00220767]
[1730146640593,0.018,69659.0,69658.0,0.00220767]
[1730146641048,0.018,69659.0,69658.0,0.00492548]
[1730146641268,0.005,69660.0,69658.0,0.00020767]
[1730146641484,0.014,69659.0,69658.0,0.00391403]
[1730146641709,0.02,69659.0,69658.0,0.00220767]
[1730146641923,0.02,69659.0,69658.0,0.00491403]
[1730146642144,0.014,69659.0,69658.0,0.00120767]
[1730146642361,0.014,69659.0,69658.0,0.00391403]
[1730146642572,0.014,69659.0,69658.0,0.00491403]
[1730146644101,0.014,69659.0,69658.0,0.00391403]
[1730146644341,0.019,69659.0,69658.0,0.00491403]
[1730146644743,0.162556,69659.0,69658.0,0.00220767]
[1730146645462,0.019,69659.0,69658.0,0.00220767]
[1730146646323,0.162556,69659.0,69658.0,0.00220767]
[1730146654527,0.162556,69659.0,69658.0,0.0047686]
[1730146654792,0.162556,69659.0,69658.0,0.00220767]
[1730146655050,0.16338,69659.0,69658.0,0.0047686]
[1730146655244,0.16338,69659.0,69658.0,0.00220767]
[1730146656668,0.17671207,69659.0,69658.0,0.00220767]
[1730146657150,0.17671196,69659.0,69658.0,0.00220767]
[1730146657609,0.18738467,69659.0,69658.0,0.00220767]
[1730146658082,0.35393235,69659.0,69658.0,0.00220767]
[1730146658526,0.18738467,69659.0,69658.0,0.00220767]
[1730146662667,0.04382867,69659.0,69658.0,0.00220767]
[1730146663078,0.03315596,69659.0,69658.0,0.00220767]
[1730146663555,0.03315596,69659.0,69658.0,0.00490493]
[1730146663743,0.03315596,69659.0,69658.0,0.00220767]
[1730146663956,0.03315596,69659.0,69658.0,0.00490493]
[1730146664168,0.03315596,69659.0,69658.0,0.00220767]
[1730146664394,0.03315596,69659.0,69658.0,0.00490493]
[1730146664613,0.17671196,69659.0,69658.0,0.00220767]
[1730146665041,0.03315596,69659.0,69658.0,0.00220767]
[1730146665910,0.17671196,69659.0,69658.0,0.00220767]
[1730146667455,0.18738916,69659.0,69658.0,0.00220767]
[1730146668177,0.17672695,69659.0,69658.0,0.00220767]
[1730146668407,0.18740446,69659.0,69658.0,0.00220767]
[1730146669977,0.28691477,69659.0,69658.0,0.00220767]
[1730146671117,0.14335877,69659.0,69658.0,0.00220767]
[1730146671352,0.18741477,69659.0,69658.0,0.00220767]
[1730146671824,0.23000214,69659.0,69658.0,0.00220767]
[1730146672074,0.23001956,69659.0,69658.0,0.00220767]
[1730146672725,0.25131325,69659.0,69658.0,0.00220767]
[1730146672936,0.10788431,69659.0,69658.0,0.00220767]
[1730146673156,0.04387619,69659.0,69658.0,0.00220767]
[1730146673368,0.04387619,69659.0,69658.0,0.00478629]
[1730146673595,0.04387619,69659.0,69658.0,0.00220767]
[1730146673806,0.03318837,69659.0,69658.0,0.00478629]
[1730146674759,0.07586248,69659.0,69658.0,0.00478629]
[1730146674981,0.07586248,69659.0,69658.0,0.00220767]
[1730146675215,0.07586248,69659.0,69658.0,0.00478629]
[1730146675417,0.07585864,69659.0,69658.0,0.00220767]
[1730146675628,0.07585864,69659.0,69658.0,0.00478629]
[1730146677429,0.07589341,69659.0,69658.0,0.00478629]
[1730146679432,0.07589341,69659.0,69658.0,0.00220767]
[1730146679704,0.02318812,69659.0,69658.0,0.00220767]
[1730146679947,0.02318812,69659.0,69658.0,0.00478629]
[1730146680150,0.02318812,69659.0,69658.0,0.00220767]
[1730146680799,0.02318812,69659.0,69658.0,0.00478629]
[1730146681008,0.02318812,69659.0,69658.0,0.00220767]
[1730146681427,0.02318812,69659.0,69658.0,0.00465859]
[1730146681853,0.16674412,69659.0,69658.0,0.00465859]
[1730146682082,0.05527303,69659.0,69658.0,0.00220767]
[1730146682315,0.20949551,69659.0,69658.0,0.00220767]
[1730146682540,0.07663497,69659.0,69658.0,0.00220767]
[1730146682764,0.06593951,69659.0,69658.0,0.00220767]
[1730146683497,0.17744106,69659.0,69658.0,0.00220767]
[1730146683705,0.24154747,69659.0,69658.0,0.00220767]
[1730146684329,0.09799147,69659.0,69658.0,0.00220767]
[1730146684816,0.09805531,69659.0,69658.0,0.00220767]
[1730146685025,0.24161131,69659.0,69658.0,0.00466185]
[1730146685235,0.24161131,69659.0,69658.0,0.00220767]
[1730146685445,0.17744106,69659.0,69658.0,0.00220767]
[1730146685655,0.33543184,69659.0,69658.0,0.00220767]
[1730146685880,0.19187584,69659.0,69658.0,0.00220767]
[1730146686128,0.16781478,69659.0,69658.0,0.00220767]
[1730146686354,0.19188993,69659.0,69658.0,0.00220767]
[1730146686786,0.42101009,69659.0,69658.0,0.00220767]
[1730146689589,0.50574593,69659.0,69658.0,0.00220767]
[1730146690102,0.49237084,69659.0,69658.0,0.00220767]
[1730146690325,0.8203736,69659.0,69658.0,0.00220767]
[1730146690545,0.86494877,69659.0,69658.0,0.00220767]
[1730146690767,0.9303736,69659.0,69658.0,0.00220767]
[1730146690977,0.97494698,69659.0,69658.0,0.00220767]
[1730146691702,0.82665484,69659.0,69658.0,0.00120767]
[1730146691919,0.82765484,69659.0,69658.0,0.00120767]
[1730146692141,0.84165484,69659.0,69658.0,0.00220767]
[1730146694071,0.188504,69659.0,69658.0,0.00220767]
[1730146694305,0.20186552,69659.0,69658.0,0.00220767]
[1730146694517,0.20186552,69659.0,69658.0,0.00448102]
[1730146694736,0.27673096,69659.0,69658.0,0.00220767]
[1730146694949,0.27173096,69659.0,69658.0,0.00348102]
[1730146695213,0.27173096,69659.0,69658.0,0.00120767]
[1730146695434,0.1831763,69659.0,69658.0,0.00248102]
[1730146695660,0.1721763,69659.0,69658.0,0.00020767]
[1730146695879,0.1851763,69659.0,69658.0,0.00020767]
[1730146696100,0.1751763,69659.0,69658.0,0.00246906]
[1730146696312,0.1791763,69659.0,69658.0,0.00246906]
[1730146696540,0.1791763,69659.0,69658.0,0.14602706]
[1730146696775,0.02118552,69659.0,69658.0,0.14602706]
[1730146696987,0.06396431,69659.0,69658.0,0.14602706]
[1730146697206,0.06396819,69659.0,69658.0,0.14602706]
[1730146697884,0.06096904,69659.0,69658.0,0.14602706]
[1730146698091,0.06196904,69659.0,69658.0,0.14602706]
[1730146698513,0.05796904,69659.0,69658.0,0.14602706]
[1730146698726,0.05996904,69659.0,69658.0,0.14602706]
[1730146698937,0.05996904,69659.0,69658.0,0.00246906]
[1730146699183,0.003824,69659.0,69658.0,0.14602706]
[1730146699820,0.0171883,69659.0,69658.0,0.14602706]
[1730146700255,0.003824,69659.0,69658.0,0.14602706]
[1730146700689,0.0171887,69659.0,69658.0,0.14602706]
[1730146701137,0.003824,69659.0,69658.0,0.14602706]
[1730146701803,0.003824,69659.0,69658.0,0.00246906]
[1730146702014,0.003824,69659.0,69658.0,0.14602706]
[1730146704676,0.003824,69659.0,69658.0,0.22332706]
[1730146706815,0.003824,69659.0,69658.0,0.14602706]
[1730146721601,0.003824,69659.0,69658.0,0.00246906]
[1730146722334,0.49816041,69659.0,69658.0,0.00246906]
[1730146722554,0.49816041,69659.0,69658.0,0.00020767]
[1730146723007,0.33943051,69659.0,69658.0,0.00020767]
[1730146723515,0.49816307,69659.0,69658.0,0.00020767]
[1730146723729,0.17330707,69659.0,69658.0,0.14376567]
[1730146723920,0.17330707,69659.0,69658.0,0.00233832]
[1730146724387,0.16255656,69659.0,69658.0,0.14589632]
[1730146724833,0.003824,69659.0,69658.0,0.14589632]
[1730146727568,0.003824,69659.0,69658.0,0.00233832]
[1730146728920,0.003824,69659.0,69658.0,0.14589632]
[1730146729172,0.003824,69659.0,69658.0,0.00233832]
[1730146730307,0.04682124,69659.0,69658.0,0.00233832]
[1730146733184,0.06931952,69659.0,69658.0,0.00233832]
[1730146734293,0.06932179,69659.0,69658.0,0.00233832]
[1730146734944,0.04682351,69659.0,69658.0,0.00233832]
[1730146737433,0.003824,69659.0,69658.0,0.00233832]
[1730146738562,0.06832326,69659.0,69658.0,0.00233832]
[1730146739020,0.06836666,69659.0,69658.0,0.00233832]
[1730146739236,0.04685244,69659.0,69658.0,0.00233832]
[1730146739485,0.06836666,69659.0,69658.0,0.00233832]
[1730146739948,0.003824,69659.0,69658.0,0.00233832]
[1730146740405,0.1627274,69659.0,69658.0,0.00233832]
[1730146741930,0.003824,69659.0,69658.0,0.00233832]
[1730146742157,0.06839624,69659.0,69658.0,0.00233832]
[1730146742377,0.16273812,69659.0,69658.0,0.00233832]
[1730146743281,0.06839926,69659.0,69658.0,0.00233832]
[1730146743517,0.003824,69659.0,69658.0,0.00233832]
[1730146743740,0.41391998,69659.0,69658.0,0.00233832]
[1730146743976,0.31705731,69659.0,69658.0,0.00020767]
[1730146744432,0.31706057,69659.0,69658.0,0.00020767]
[1730146744652,0.42388816,69659.0,69658.0,0.00020767]
[1730146744860,0.28033216,69659.0,69658.0,0.00020767]
[1730146745523,0.41536057,69659.0,69658.0,0.00020767]
[1730146746817,0.4153435,69659.0,69658.0,0.00020767]
[1730146747498,0.52295196,69659.0,69658.0,0.00020767]
[1730146748376,0.4153435,69659.0,69658.0,0.00020767]
[1730146748793,0.52295196,69659.0,69658.0,0.00020767]
[1730146749926,0.37939596,69659.0,69658.0,0.00020767]
[1730146750370,0.2717875,69659.0,69658.0,0.00020767]
[1730146750594,0.27179028,69659.0,69658.0,0.00020767]
[1730146750811,0.41534628,69659.0,69658.0,0.00020767]
[1730146751046,0.27179028,69659.0,69658.0,0.00020767]
[1730146752593,0.41534628,69659.0,69658.0,0.00020767]
[1730146752821,0.27179028,69659.0,69658.0,0.00020767]
[1730146753036,0.41534628,69659.0,69658.0,0.00020767]
[1730146753460,0.52295474,69659.0,69658.0,0.00020767]
[1730146753885,0.41534628,69659.0,69658.0,0.00020767]
[1730146754326,0.40458105,69659.0,69658.0,0.00020767]
[1730146754546,0.41534878,69659.0,69658.0,0.00020767]
[1730146754768,0.52295724,69659.0,69658.0,0.00020767]
[1730146755881,0.41530951,69659.0,69658.0,0.00020767]
[1730146756239,0.40454178,69659.0,69658.0,0.00020767]
[1730146756507,0.41530893,69659.0,69658.0,0.00020767]
[1730146759385,0.41530864,69659.0,69658.0,0.00020767]
[1730146759618,0.4260755,69659.0,69658.0,0.00020767]
[1730146760255,0.53368396,69659.0,69658.0,0.00020767]
[1730146760941,0.42611053,69659.0,69658.0,0.00020767]
[1730146761817,0.41534367,69659.0,69658.0,0.00020767]
[1730146762022,0.53372741,69659.0,69658.0,0.00020767]
[1730146762234,0.51220429,69659.0,69658.0,0.00020767]
[1730146762439,0.53372741,69659.0,69658.0,0.00020767]